bitfinex/quotes_ETHUSD_20220115
["timestamp","ask_amount","ask_price","bid_price","bid_amount"]
[1642231683904,0.00170527,3312.4,3312.1,2.58187731]
[1642231684306,0.00113685,3312.3,3312.1,2.58187731]
[1642231684704,0.00170527,3312.4,3312.1,2.58187731]
[1642231685205,0.00113685,3312.3,3311.9,0.00113685]
[1642231685608,0.012041,3312.2,3311.9,0.00113685]
[1642231686205,0.012041,3312.2,3311.8,0.00170527]
[1642231688961,0.018888,3311.9,3311.8,0.00170527]
[1642231691306,0.37686289,3312.0,3311.8,0.00170527]
[1642231691907,0.012249,3311.9,3311.8,0.00170527]
[1642231693109,0.0057911,3311.9,3311.8,0.00170527]
[1642231695163,0.37686289,3312.0,3311.8,0.00170527]
[1642231697463,1.88912735,3312.0,3311.8,0.00170527]
[1642231699107,0.37686289,3312.0,3311.8,0.00170527]
[1642231699707,0.37686289,3312.0,3311.8,1.15942773]
[1642231700110,0.37686289,3312.0,3311.9,0.00113685]
[1642231701211,0.37686289,3312.0,3311.9,2.58318706]
[1642231701910,0.37686289,3312.0,3311.9,0.00113685]
[1642231702558,0.37686289,3312.0,3311.9,2.58318706]
[1642231703265,0.37686289,3312.0,3311.9,0.00113685]
[1642231704062,0.37686289,3312.0,3311.9,2.58318706]
[1642231704660,0.37686289,3312.0,3311.9,0.00113685]
[1642231707507,0.37686289,3312.0,3311.8,0.00170527]
[1642231708104,0.37686289,3312.0,3311.8,2.58388867]
[1642231708506,0.37686289,3312.0,3311.9,0.00113685]
[1642231721015,0.28706489,3312.7,3311.9,0.00113685]
[1642231721406,0.00284212,3312.6,3311.9,0.00113685]
[1642231721808,0.00227369,3312.5,3311.9,0.00113685]
[1642231722209,0.00170527,3312.4,3311.9,0.00113685]
[1642231722609,0.00113685,3312.3,3311.9,0.00113685]
[1642231723011,0.00341054,3312.7,3311.9,0.00113685]
[1642231724866,0.36847341,3312.6,3311.9,0.00113685]
[1642231725266,0.00227369,3312.5,3311.9,0.00113685]
[1642231725667,0.00170527,3312.4,3311.9,0.00113685]
[1642231726067,0.00113685,3312.3,3311.9,0.00113685]
[1642231726470,0.00227369,3312.5,3311.9,0.00113685]
[1642231726868,0.00170527,3312.4,3312.2,1.53192797]
[1642231727271,0.00113685,3312.3,3312.2,1.53192797]
[1642231727470,0.00113685,3312.3,3311.9,0.00113685]
[1642231729303,0.00113685,3312.3,3311.9,1.24048088]
[1642231730405,0.00113685,3312.3,3312.0,2.5821834]
[1642231743810,0.00113685,3312.3,3312.0,6.17975019]
[1642231745112,0.00113685,3312.3,3312.0,4.89466016]
[1642231745712,0.00113685,3312.3,3312.1,2.5821834]
[1642231745921,0.00113685,3312.3,3312.2,6.53002013]
[1642231746514,0.00113685,3312.3,3312.2,7.73962013]
[1642231747959,0.00113685,3312.3,3312.2,10.32180353]
[1642231752810,0.00113685,3312.3,3312.2,6.57180353]
[1642231757566,1.38190489,3312.8,3312.2,6.57180353]
[1642231757866,0.00341054,3312.7,3312.6,1.27272321]
[1642231759208,0.00341054,3312.7,3312.6,3.85490661]
[1642231760814,0.00341054,3312.7,3312.6,6.50823597]
[1642231761214,0.00341054,3312.7,3312.6,3.85490661]
[1642231761415,0.00341054,3312.7,3312.6,6.48361902]
[1642231761618,0.00341054,3312.7,3312.6,6.50155871]
[1642231761814,0.00341054,3312.7,3312.6,6.49223968]
[1642231762015,0.00341054,3312.7,3312.6,3.85490661]
[1642231765864,0.00341054,3312.7,3312.6,2.5821834]
[1642231767514,0.00341054,3312.7,3312.3,2.5821834]
[1642231767714,0.00341054,3312.7,3312.3,3.94004045]
[1642231767918,0.00284212,3312.6,3312.3,3.94004045]
[1642231768215,0.00227369,3312.5,3312.3,6.52568961]
[1642231768616,0.00170527,3312.4,3312.3,3.94004045]
[1642231769217,0.00170527,3312.4,3312.3,6.60541107]
[1642231769617,0.00170527,3312.4,3312.3,3.93308608]
[1642231770065,0.00170527,3312.4,3312.3,1.35785705]
[1642231770462,0.00170527,3312.4,3312.2,1.2096]
[1642231770864,0.00113685,3312.3,3312.2,1.2096]
[1642231782512,0.00113685,3312.3,3312.2,4.14349704]
[1642231783313,0.00113685,3312.3,3312.2,4.4596]
[1642231783512,0.00113685,3312.3,3312.2,5.80797471]
[1642231784762,0.00113685,3312.3,3312.2,8.97342231]
[1642231784965,0.00113685,3312.3,3312.2,11.55515154]
[1642231786163,0.00113685,3312.3,3312.2,10.20677683]
[1642231789517,0.00113685,3312.3,3312.2,6.95677683]
[1642231803368,0.00113685,3312.3,3312.2,7.71150683]
[1642231803616,0.00113685,3312.3,3312.2,6.95677683]
[1642231804016,7.83461,3314.7,3312.4,5.75]
[1642231804221,1.50941,3314.9,3312.4,5.75]
[1642231804222,1.7584,3315.2,3313.4,0.034939]
[1642231804420,1.45162781,3315.2,3314.6,0.024049]
[1642231804615,1.45162781,3315.2,3314.6,1.037249]
[1642231804815,1.52808571,3315.2,3314.6,1.037249]
[1642231805016,1.52808571,3315.2,3314.5,1.37238225]
[1642231805515,1.45162781,3315.2,3314.5,1.37238225]
[1642231806515,1.51107619,3314.6,3314.5,1.37238225]
[1642231807265,1.51107619,3314.6,3314.5,4.02114701]
[1642231807465,1.1439,3316.6,3314.6,5.75]
[1642231807667,0.95893244,3315.8,3315.2,0.7541562]
[1642231808065,0.01932639,3315.7,3315.2,0.7541562]
[1642231808468,0.01875797,3315.6,3315.2,0.7541562]
[1642231808865,0.01818955,3315.5,3315.2,0.7541562]
[1642231809065,0.01818955,3315.5,3315.2,1.5082162]
[1642231809266,0.01762112,3315.4,3315.2,1.5082162]
[1642231809466,0.90093658,3315.4,3315.2,1.5082162]
[1642231809667,0.88331546,3315.4,3315.3,2.75815115]
[1642231809967,0.90093658,3315.4,3315.3,3.91478755]
[1642231810169,0.90093658,3315.4,3315.3,1.1566364]
[1642231810468,0.90093658,3315.4,3315.3,3.70452085]
[1642231810669,0.90093658,3315.4,3315.3,1.1566364]
[1642231811115,0.90093658,3315.4,3315.3,3.75752343]
[1642231811317,0.90093658,3315.4,3315.3,3.71104497]
[1642231811520,0.90093658,3315.4,3315.3,1.1566364]
[1642231811717,0.90093658,3315.4,3315.3,3.71389892]
[1642231811917,0.90093658,3315.4,3315.3,3.70618868]
[1642231813221,0.90093658,3315.4,3315.3,1.1566364]
[1642231813621,0.90093658,3315.4,3315.3,3.77740107]
[1642231813823,0.90093658,3315.4,3315.3,3.75615041]
[1642231814122,0.90093658,3315.4,3315.3,1.1566364]
[1642231814960,0.90093658,3315.4,3315.3,3.71354938]
[1642231815563,0.90093658,3315.4,3315.3,1.1566364]
[1642231816764,0.90093658,3315.4,3314.9,5.6039124]
[1642231816966,0.90093658,3315.4,3314.9,1.5083124]
[1642231817167,0.0170527,3315.3,3314.9,4.07105833]
[1642231817369,0.0170527,3315.3,3314.9,1.5083124]
[1642231817370,0.44165773,3315.2,3314.9,1.5083124]
[1642231817567,0.45814201,3315.2,3314.9,1.5083124]
[1642231817767,0.01591585,3315.1,3314.9,1.5083124]
[1642231818166,0.01534743,3315.0,3314.9,1.5083124]
[1642231820015,0.01534743,3315.0,3314.7,1.14602142]
[1642231820416,0.01477901,3314.9,3314.7,1.14602142]
[1642231820817,0.01421058,3314.8,3314.7,3.34602142]
[1642231821223,0.01421058,3314.8,3314.7,1.14602142]
[1642231822267,1.11103264,3314.8,3314.6,4.5091]
[1642231822467,0.01421058,3314.8,3314.6,4.5091]
[1642231822670,1.11222563,3315.5,3314.6,4.5091]
[1642231822671,0.89695762,3314.7,3314.6,4.5091]
[1642231822867,0.89695762,3314.7,3314.4,5.6358]
[1642231823068,0.89695762,3314.7,3314.2,3.87038743]
[1642231823269,0.01307373,3314.6,3314.2,5.01362784]
[1642231823668,0.01250531,3314.5,3314.2,5.01362784]
[1642231823872,1.49709063,3314.5,3314.2,5.01362784]
[1642231824069,1.49709063,3314.5,3314.2,1.14324041]
[1642231824070,0.01193689,3314.4,3314.2,1.14324041]
[1642231824269,0.01193689,3314.4,3314.0,4.5924]
[1642231824469,0.01136846,3314.3,3314.0,5.3468379]
[1642231824672,0.01136846,3314.3,3314.0,4.5924]
[1642231824870,0.01080004,3314.2,3314.0,4.5924]
[1642231825171,0.01023162,3314.1,3314.0,4.5924]
[1642231826318,0.01023162,3314.1,3314.0,5.85954683]
[1642231827319,0.01023162,3314.1,3314.0,8.48554291]
[1642231827720,0.01023162,3314.1,3314.0,5.85954683]
[1642231827921,0.01023162,3314.1,3314.0,9.57144776]
[1642231828223,0.89354708,3314.1,3314.0,9.57144776]
[1642231828419,0.89354708,3314.1,3314.0,3.81124776]
[1642231829967,0.89354708,3314.1,3313.9,1.5087292]
[1642231830266,0.00966319,3314.0,3313.7,3.87038743]
[1642231830663,0.00909477,3313.9,3313.7,3.87038743]
[1642231831065,1.56598437,3313.8,3313.7,3.87038743]
[1642231831267,0.00852635,3313.8,3313.5,3.87038743]
[1642231831670,0.00795792,3313.7,3313.5,3.87038743]
[1642231832067,0.88331546,3314.1,3313.5,3.87038743]
[1642231832068,0.0073895,3313.6,3313.5,3.87038743]
[1642231833069,0.0073895,3313.6,3313.4,1.16148811]
[1642231833270,0.44165773,3313.5,3313.4,1.16148811]
[1642231833518,0.44847881,3313.5,3313.4,1.16148811]
[1642231835217,0.44847881,3313.5,3313.4,3.74238624]
[1642231836017,0.44847881,3313.5,3313.4,1.16148811]
[1642231836218,0.44847881,3313.5,3313.2,2.58089813]
[1642231836620,0.00625265,3313.4,3313.2,2.58089813]
[1642231836822,0.00625265,3313.4,3313.1,8.7649]
[1642231837020,0.00568423,3313.3,3313.1,4.3802]
[1642231837463,0.00511581,3313.2,3313.1,4.3802]
[1642231852265,0.00511581,3313.2,3313.1,6.96147604]
[1642231853466,0.88843127,3313.2,3313.1,6.96147604]
[1642231854468,0.88843127,3313.2,3313.1,2.58127604]
[1642231855469,0.88843127,3313.2,3312.6,2.58127604]
[1642231855671,1.12163058,3313.1,3312.6,2.58127604]
[1642231855871,1.12617796,3313.1,3312.6,2.58127604]
[1642231856117,0.00397896,3313.0,3312.6,2.58127604]
[1642231856522,0.00341054,3312.9,3312.6,2.58127604]
[1642231856919,0.00284211,3312.8,3312.6,2.58127604]
[1642231857320,0.00227369,3312.7,3312.6,2.58127604]
[1642231858422,0.00227369,3312.7,3312.6,5.07732797]
[1642231858921,0.88558915,3312.7,3312.6,2.58127604]
[1642231860069,0.88558915,3312.7,3312.6,5.13657864]
[1642231864616,0.88558915,3312.7,3312.6,2.58127604]
[1642231867574,0.88558915,3312.7,3312.6,5.08731309]
[1642231870175,0.88558915,3312.7,3312.6,8.95770052]
[1642231877575,0.88558915,3312.7,3312.6,6.45166347]
[1642231877774,0.88558915,3312.7,3312.6,9.03724091]
[1642231877974,0.88558915,3312.7,3312.6,5.16685348]
[1642231881227,0.88558915,3312.7,3312.6,2.58127604]
[1642231881822,0.88558915,3312.7,3312.6,5.09522925]
[1642231882668,0.88558915,3312.7,3312.6,2.58127604]
[1642231883773,0.88558915,3312.7,3312.6,5.1124071]
[1642231887621,0.88331546,3312.7,3312.6,5.1124071]
[1642231889027,0.88331546,3312.7,3312.6,2.58127604]
[1642231896926,0.88331546,3312.7,3312.6,5.18087068]
[1642231901617,0.88331546,3312.7,3312.6,2.58127604]
[1642231901822,0.88331546,3312.7,3312.6,5.15810146]
[1642231904325,0.88331546,3312.7,3312.6,2.58127604]
[1642231905172,0.88331546,3312.7,3312.6,5.09883132]
[1642231910126,0.88331546,3312.7,3312.6,2.58127604]
[1642231910526,0.88331546,3312.7,3312.6,5.11691376]
[1642231911625,0.88331546,3312.7,3312.6,2.58127604]
[1642231914975,0.88331546,3312.7,3312.6,5.11641746]
[1642231918725,0.89380346,3312.7,3312.6,2.58127604]
[1642231919425,0.88331546,3312.7,3312.6,2.58127604]
[1642231919624,0.88331546,3312.7,3312.6,5.14547638]
[1642231922170,0.88331546,3312.7,3312.6,2.58127604]
[1642231927035,0.88331546,3312.7,3312.6,5.14302377]
[1642231930081,0.83610439,3312.7,3312.6,22.76302377]
[1642231930274,0.44165773,3312.7,3312.6,22.76302377]
[1642231930676,0.44502135,3314.5,3313.2,0.75445]
[1642231930877,0.44502135,3314.5,3313.4,1.36617931]
[1642231930878,1.41625993,3314.2,3313.4,1.36617931]
[1642231931125,0.44502135,3314.5,3313.5,2.80485824]
[1642231931126,0.00852635,3313.8,3313.5,2.80485824]
[1642231931523,0.00795792,3313.7,3313.5,2.80485824]
[1642231932024,1.92695902,3314.5,3313.6,1.43360612]
[1642231932425,0.01193689,3314.4,3313.6,1.43360612]
[1642231932825,1.41525402,3313.8,3313.6,1.43360612]
[1642231933226,0.00795792,3313.7,3313.6,1.43360612]
[1642231934428,0.00795792,3313.7,3313.4,2.7275076]
[1642231934880,0.0073895,3313.6,3313.4,2.7275076]
[1642231935280,0.00682108,3313.5,3313.4,2.7275076]
[1642231935477,0.00682108,3313.5,3313.4,1.2187]
[1642231936077,0.00682108,3313.5,3313.3,8.10418743]
[1642231936078,0.04450808,3313.5,3313.3,8.10418743]
[1642231936278,0.04450808,3313.5,3313.3,4.2338]
[1642231936481,0.00625265,3313.4,3313.3,4.2338]
[1642231938627,0.01929965,3313.4,3313.3,4.2338]
[1642231938826,0.03213465,3313.4,3313.3,4.2338]
[1642231939130,0.00625265,3313.4,3313.3,4.2338]
[1642231939327,0.02430965,3313.4,3313.3,4.2338]
[1642231939526,0.00625265,3313.4,3313.3,4.2338]
[1642231939728,0.01809465,3313.4,3313.3,4.2338]
[1642231940928,0.01809465,3313.4,3312.9,2.6640008]
[1642231940929,0.01809465,3313.4,3312.9,1.1982]
[1642231941128,0.045463,3313.0,3312.9,1.1982]
[1642231941532,0.04944196,3313.0,3312.9,1.1982]
[1642231942373,0.00397896,3313.0,3312.9,1.1982]
[1642231942977,0.00397896,3313.0,3312.7,4.4257]
[1642231943173,1.56274232,3312.8,3312.7,4.4257]
[1642231943377,1.56274232,3312.8,3312.6,5.58283798]
[1642231943573,1.56558443,3312.8,3312.6,9.45322541]
[1642231943773,0.00227369,3312.7,3312.6,9.45322541]
[1642231944676,0.00227369,3312.7,3312.6,5.58283798]
[1642231945480,0.00227369,3312.7,3312.6,9.45322541]
[1642231946422,0.39672035,3312.7,3312.6,9.45322541]
[1642231947423,0.39672035,3312.7,3312.6,5.58283798]
[1642231949022,0.39672035,3312.7,3312.6,8.16401203]
[1642231950780,0.39672035,3312.7,3312.6,10.90905261]
[1642231951177,0.39672035,3312.7,3312.6,14.77944004]
[1642231952180,0.39672035,3312.7,3312.6,32.39944004]
[1642231952378,0.39672035,3312.7,3312.6,29.65439946]
[1642231953830,0.39672035,3312.7,3312.6,31.19993112]
[1642231954727,0.39672035,3312.7,3312.6,29.65439946]
[1642231955430,0.39672035,3312.7,3312.6,31.19993112]
[1642231955630,1.7973,3314.4,3312.8,17.62]
[1642231955834,1.256093,3314.3,3313.1,19.12894]
[1642231956134,0.00397896,3313.4,3313.1,19.12894]
[1642231956531,0.00341054,3313.3,3313.2,2.81468376]
[1642231956832,0.00341054,3313.3,3313.2,24.07156148]
[1642231958778,0.00341054,3313.3,3313.2,25.58030148]
[1642231958975,0.00341054,3313.3,3313.2,24.07156148]
[1642231960774,0.00341054,3313.3,3313.2,6.45156148]
[1642231961429,0.00341054,3313.3,3313.2,7.99709314]
[1642231962427,0.00341054,3313.3,3313.1,4.12670571]
[1642231962826,0.00284212,3313.2,3313.1,4.12670571]
[1642231963228,0.00284212,3313.2,3313.1,6.52038743]
[1642231964033,0.00284212,3313.2,3313.1,3.87038743]
[1642231964628,0.00284212,3313.2,3313.0,0.7544695]
[1642231965071,0.00227369,3313.1,3312.9,9.829039]
[1642231965473,0.00170527,3313.0,3312.9,9.829039]
[1642231965975,0.00170527,3313.0,3312.9,13.69942643]
[1642231967776,0.00170527,3313.0,3312.9,16.01772392]
[1642231971731,0.00170527,3313.0,3312.9,13.69942643]
[1642231972378,0.00170527,3313.0,3312.9,16.0220843]
[1642231973976,0.00170527,3313.0,3312.9,13.69942643]
[1642231974879,0.00170527,3313.0,3312.9,16.0220843]
[1642231975079,0.00170527,3313.0,3312.9,11.9092843]
[1642231977530,0.00170527,3313.0,3312.9,29.5292843]
[1642231978428,0.00170527,3313.0,3312.9,30.2837143]
[1642231978627,0.00170527,3313.0,3312.9,32.86444533]
[1642231979425,0.00170527,3313.0,3312.9,30.54178746]
[1642231980075,0.00170527,3313.0,3312.9,31.14178746]
[1642231980275,0.00170527,3313.0,3312.9,31.17375798]
[1642231980474,0.00170527,3313.0,3312.9,32.17554433]
[1642231980676,0.00170527,3313.0,3312.9,32.18041067]
[1642231980877,0.00170527,3313.0,3312.9,31.14178746]
[1642231981178,0.00170527,3313.0,3312.9,32.17555851]
[1642231981376,0.00170527,3313.0,3312.9,32.14178746]
[1642231981578,0.00170527,3313.0,3312.9,32.17850275]
[1642231981775,0.00170527,3313.0,3312.9,32.14178746]
[1642231982777,0.00170527,3313.0,3312.9,32.18098309]
[1642231983377,0.00170527,3313.0,3312.9,32.89625526]
[1642231983826,0.00170527,3313.0,3312.9,15.27625526]
[1642231984628,0.00170527,3313.0,3312.9,11.40586783]
[1642231985430,0.00170527,3313.0,3312.9,32.89625526]
[1642231987484,0.009093,3313.6,3312.9,32.93205195]
[1642231987679,0.009093,3313.6,3313.3,17.62]
[1642231987879,0.00284212,3313.5,3313.4,22.483123]
[1642231988280,0.02054954,3313.6,3313.4,22.483123]
[1642231989581,0.02054954,3313.6,3313.5,20.20073103]
[1642231989986,0.00341054,3313.6,3313.5,20.20073103]
[1642231991125,0.00341054,3313.6,3313.5,2.58073103]
[1642231992528,0.00341054,3313.6,3313.5,20.20073103]
[1642231993228,0.00341054,3313.6,3313.5,2.58073103]
[1642231996677,0.00341054,3313.6,3313.5,20.20073103]
[1642231997879,0.00341054,3313.6,3313.5,24.07160876]
[1642231998279,0.00341054,3313.6,3313.5,6.45160876]
[1642231999431,0.00341054,3313.6,3313.5,2.88073103]
[1642232001133,0.00341054,3313.6,3313.5,20.50073103]
[1642232002134,0.00341054,3313.6,3313.5,24.37160876]
[1642232002776,0.00341054,3313.6,3313.5,6.75160876]
[1642232003677,0.00341054,3313.6,3313.5,2.88073103]
[1642232009325,0.01302254,3313.6,3313.5,2.58073103]
[1642232009624,0.00341054,3313.6,3313.5,2.58073103]
[1642232009881,0.02684554,3313.6,3313.5,2.58073103]
[1642232010076,0.00341054,3313.6,3313.5,2.58073103]
[1642232010680,0.00341054,3313.6,3313.4,2.58073103]
[1642232012580,0.02440854,3313.6,3313.4,2.58073103]
[1642232012779,0.00341054,3313.6,3313.4,2.58073103]
[1642232013284,0.04794154,3313.6,3313.4,2.58073103]
[1642232013533,0.090926,3313.5,3313.4,2.58073103]
[1642232013725,0.045463,3313.5,3313.4,2.58073103]
[1642232017028,0.031473,3313.5,3313.4,2.58073103]
[1642232020284,1.031473,3313.5,3313.4,2.58073103]
[1642232020685,0.031473,3313.5,3313.4,2.58073103]
[1642232021534,0.031473,3313.5,3312.8,2.58073103]
[1642232021827,1.0,3313.7,3312.8,2.58073103]
[1642232021828,0.045463,3312.9,3312.8,2.58073103]
[1642232022030,0.014903,3312.9,3312.8,2.58073103]
[1642232022229,0.014903,3312.9,3312.8,2.58186788]
[1642232022629,0.045463,3313.0,3312.8,2.58186788]
[1642232022829,0.045463,3312.9,3312.8,2.58186788]
[1642232024883,0.009093,3313.0,3312.8,2.58186788]
[1642232027083,0.040537,3312.9,3312.8,2.58186788]
[1642232030531,0.009093,3313.0,3312.8,2.58186788]
[1642232032577,1.14492101,3313.2,3312.8,2.58186788]
[1642232032779,0.045463,3313.0,3312.8,2.58186788]
[1642232035280,0.039938,3312.9,3312.8,2.58186788]
[1642232036131,0.009093,3313.0,3312.8,2.58186788]
[1642232040180,1.13582801,3313.2,3312.8,2.58186788]
[1642232040481,0.009093,3313.1,3312.8,2.58186788]
[1642232040882,0.018985,3313.1,3312.8,2.58186788]
[1642232041281,1.14492101,3313.2,3312.8,2.58186788]
[1642232041581,0.031566,3313.1,3312.8,2.58186788]
[1642232041981,0.030155,3313.0,3312.8,2.58186788]
[1642232042781,0.031566,3313.1,3312.8,2.58186788]
[1642232042982,0.009093,3313.5,3312.8,2.58186788]
[1642232043182,0.025049,3313.5,3312.8,2.58186788]
[1642232043382,0.00227369,3313.4,3312.8,2.58186788]
[1642232043631,0.042997,3313.3,3312.8,2.58186788]
[1642232043833,0.04470227,3313.3,3312.9,1.5387648]
[1642232044133,0.00113685,3313.2,3312.9,1.5387648]
[1642232044339,0.031711,3313.1,3312.9,1.5387648]
[1642232044533,0.01701785,3313.2,3312.9,6.45160876]
[1642232044933,0.00113685,3313.2,3312.9,6.45160876]
[1642232045134,0.00113685,3313.2,3312.9,24.07160876]
[1642232045333,0.01723985,3313.2,3312.9,24.07160876]
[1642232045534,0.01723985,3313.2,3312.9,17.62]
[1642232045535,0.00113685,3313.2,3312.9,17.62]
[1642232046534,0.00113685,3313.2,3313.0,24.07160876]
[1642232047391,0.00113685,3313.2,3313.1,6.12087773]
[1642232047587,0.00113685,3313.2,3313.1,6.45160876]
[1642232048788,0.00113685,3313.2,3312.9,8.74489796]
[1642232049493,0.00113685,3313.2,3313.1,5.48073103]
[1642232050091,0.00113685,3313.2,3313.1,2.58073103]
[1642232050291,0.00113685,3313.2,3313.0,2.58073103]
[1642232050493,0.00113685,3313.2,3313.0,20.20073103]
[1642232051128,0.00113685,3313.2,3313.1,2.58073103]
[1642232052132,0.00113685,3313.2,3313.1,6.45160876]
[1642232053430,0.00113685,3313.2,3313.1,3.87087773]
[1642232053732,0.00113685,3313.2,3313.0,2.58073103]
[1642232053931,0.00113685,3313.2,3313.1,4.78073103]
[1642232054782,0.00113685,3313.2,3313.1,2.58073103]
[1642232055779,0.00113685,3313.2,3313.0,2.58073103]
[1642232056180,0.00113685,3313.2,3313.0,20.20073103]
[1642232056480,0.00113685,3313.2,3313.1,17.62]
[1642232056680,0.00113685,3313.2,3313.1,20.20073103]
[1642232057583,0.00113685,3313.2,3313.1,24.07160876]
[1642232060732,0.00113685,3313.2,3313.1,6.45160876]
[1642232061733,0.00113685,3313.2,3313.0,2.58073103]
[1642232062585,0.00113685,3313.2,3313.1,2.58073103]
[1642232063380,0.00113685,3313.2,3312.9,4.41949583]
[1642232063581,0.00113685,3313.2,3312.9,4.71949583]
[1642232064381,0.00113685,3313.2,3313.0,2.58073103]
[1642232064781,0.02163185,3313.2,3313.0,2.58073103]
[1642232064984,0.00113685,3313.2,3313.0,2.58073103]
[1642232065188,0.00113685,3313.2,3312.9,4.87406343]
[1642232065389,0.00113685,3313.2,3313.0,2.51201231]
[1642232065886,0.00113685,3313.2,3313.0,5.09274334]
[1642232066130,0.00113685,3313.2,3313.0,2.58073103]
[1642232066329,0.00113685,3313.2,3313.1,4.99789031]
[1642232066632,0.00113685,3313.2,3313.1,7.65944566]
[1642232067629,0.00113685,3313.2,3313.1,11.53032339]
[1642232068533,0.00113685,3313.2,3313.1,7.65944566]
[1642232069782,0.00113685,3313.2,3313.1,5.15944566]
[1642232069980,0.00113685,3313.2,3313.1,2.58073103]
[1642232073381,0.00113685,3313.2,3312.9,7.13379075]
[1642232073382,0.00113685,3313.2,3313.0,2.58073103]
[1642232073835,0.00113685,3313.2,3313.1,5.13073103]
[1642232074033,0.009093,3313.3,3313.1,5.13073103]
[1642232075036,0.009093,3313.3,3313.1,2.58073103]
[1642232075436,0.009093,3313.3,3313.2,2.58073103]
[1642232075639,0.009093,3313.4,3313.2,22.6965293]
[1642232075835,0.009093,3313.5,3313.3,7.22682731]
[1642232076038,0.009093,3313.6,3313.4,2.86471313]
[1642232076239,0.009896,3313.6,3313.4,20.48471313]
[1642232076637,0.009896,3313.6,3313.3,1.9910136]
[1642232076638,0.009896,3313.6,3313.5,20.1378226]
[1642232076838,0.009093,3313.8,3313.6,1.39284414]
[1642232077279,0.009093,3313.8,3313.6,3.88970005]
[1642232077481,0.009093,3313.8,3313.6,1.39284414]
[1642232077682,0.009093,3313.8,3313.7,2.58073103]
[1642232077881,0.034736,3313.8,3313.7,2.58073103]
[1642232078081,0.03928339,3313.8,3313.7,2.58073103]
[1642232078285,0.01364039,3313.8,3313.7,2.58073103]
[1642232079888,0.04290039,3313.8,3313.7,2.58073103]
[1642232080383,0.01797357,3313.8,3313.7,2.58073103]
[1642232080791,0.01797357,3313.8,3313.6,1.39284414]
[1642232082132,0.01797357,3313.8,3313.7,2.58057211]
[1642232082733,0.009093,3313.9,3313.7,2.58057211]
[1642232087078,0.009093,3313.9,3313.5,2.58057211]
[1642232087279,0.009093,3313.9,3313.5,3.94452436]
[1642232087478,0.009093,3313.9,3313.6,0.00113685]
[1642232088539,0.029713,3313.9,3313.6,0.00113685]
[1642232088731,0.029713,3313.9,3313.6,2.58170896]
[1642232089332,0.029713,3313.9,3313.6,2.48316532]
[1642232089532,0.00113685,3313.8,3313.6,2.48316532]
[1642232089733,0.00113685,3313.8,3313.5,1.36395225]
[1642232090034,0.02026285,3313.8,3313.5,1.36395225]
[1642232090532,0.035882,3313.6,3313.4,4.3517]
[1642232091535,0.035882,3313.6,3313.4,5.77197498]
[1642232092782,0.009093,3313.7,3313.4,5.77197498]
[1642232096336,0.00113685,3313.8,3313.4,5.77197498]
[1642232096731,0.01852585,3313.8,3313.4,5.77197498]
[1642232098234,0.026866,3313.7,3313.4,5.77197498]
[1642232098534,0.03076,3313.6,3313.4,4.3517]
[1642232099785,0.03076,3313.6,3313.5,3.74698136]
[1642232099985,0.026866,3313.7,3313.5,3.74698136]
[1642232101491,0.026866,3313.7,3313.5,4.50143266]
[1642232102686,0.026866,3313.7,3313.5,22.12143266]
[1642232102886,0.01022985,3313.8,3313.5,22.12143266]
[1642232103088,0.01022985,3313.8,3313.5,1.09698136]
[1642232104935,0.01022985,3313.8,3313.5,18.71698136]
[1642232105136,0.01022985,3313.8,3313.6,18.3744276]
[1642232107779,0.01022985,3313.8,3313.6,0.7544276]
[1642232108581,0.05855,3313.7,3313.5,1.09698136]
[1642232109782,0.05855,3313.7,3313.6,2.5806797]
[1642232109983,0.030192,3313.7,3313.6,2.5806797]
[1642232110281,0.015682,3313.7,3313.6,2.5806797]
[1642232110681,0.043216,3313.7,3313.6,2.5806797]
[1642232110882,0.01022985,3313.8,3313.6,2.5806797]
[1642232111132,0.00113685,3313.8,3313.6,2.5806797]
[1642232111734,0.02236385,3313.8,3313.6,2.5806797]
[1642232111931,0.05306985,3313.8,3313.6,2.5806797]
[1642232112334,0.040277,3313.7,3313.6,2.5806797]
[1642232112932,0.058866,3313.7,3313.6,2.5806797]
[1642232113733,0.049913,3313.7,3313.6,2.5806797]
[1642232114434,0.031324,3313.7,3313.6,2.5806797]
[1642232115677,0.01022985,3313.8,3313.6,2.5806797]
[1642232116678,0.04244,3313.7,3313.6,2.5806797]
[1642232117282,0.023035,3313.7,3313.6,2.5806797]
[1642232117483,0.00113685,3313.8,3313.6,2.5806797]
[1642232117681,0.04244,3313.7,3313.6,2.5806797]
[1642232118284,0.027169,3313.7,3313.6,2.5806797]
[1642232118537,0.045463,3313.7,3313.6,2.5806797]
[1642232120332,0.045463,3313.7,3313.5,2.5806797]
[1642232120534,1.41490693,3314.0,3313.5,2.5806797]
[1642232120732,0.04244,3313.7,3313.5,2.5806797]
[1642232120933,0.045463,3313.6,3313.5,2.5806797]
[1642232121535,0.076219,3313.6,3313.5,2.5806797]
[1642232121736,0.009093,3313.7,3313.5,2.5806797]
[1642232121939,0.04244,3313.6,3313.5,2.5806797]
[1642232122383,0.00113685,3313.8,3313.5,2.5806797]
[1642232122583,0.045463,3313.6,3313.5,2.5806797]
[1642232122786,0.064363,3313.6,3313.5,2.5806797]
[1642232122984,0.009093,3313.7,3313.5,2.5806797]
[1642232123185,0.00113685,3313.8,3313.5,2.5806797]
[1642232123386,0.04244,3313.7,3313.5,2.5806797]
[1642232123587,0.04244,3313.6,3313.5,2.5806797]
[1642232123787,0.017631,3313.6,3313.5,2.5806797]
[1642232123987,0.009093,3313.7,3313.5,2.5806797]
[1642232124187,0.010091,3313.7,3313.5,2.5806797]
[1642232124387,0.01022985,3313.8,3313.5,2.5806797]
[1642232124592,0.04244,3313.6,3313.5,2.5806797]
[1642232124793,0.066221,3313.6,3313.5,2.5806797]
[1642232124989,0.04244,3313.6,3313.5,2.5806797]
[1642232126035,0.01932285,3313.8,3313.5,2.5806797]
[1642232126230,0.051533,3313.7,3313.5,2.5806797]
[1642232126429,0.01022985,3313.8,3313.5,2.5806797]
[1642232126630,0.00113685,3313.8,3313.5,2.5806797]
[1642232126830,0.03631685,3313.8,3313.5,2.5806797]
[1642232127030,0.04244,3313.7,3313.5,2.5806797]
[1642232127234,0.04244,3313.6,3313.5,2.5806797]
[1642232127432,0.035159,3313.6,3313.5,2.5806797]
[1642232127632,0.019438,3313.6,3313.5,2.5806797]
[1642232128633,0.009386,3313.6,3313.5,2.5806797]
[1642232128834,0.018186,3313.7,3313.5,2.5806797]
[1642232129033,0.009093,3313.7,3313.5,2.5806797]
[1642232129233,0.01022985,3313.8,3313.5,2.5806797]
[1642232129433,0.00113685,3313.8,3313.5,2.5806797]
[1642232129633,0.02480585,3313.8,3313.5,2.5806797]
[1642232129889,0.04244,3313.7,3313.5,2.5806797]
[1642232130282,0.00113685,3313.8,3313.5,2.5806797]
[1642232130485,0.042663,3313.6,3313.5,2.5806797]
[1642232130686,0.018186,3313.7,3313.5,2.5806797]